{"text_format":"3","workbook":"xlsx","n_sheets":1,"sheets":["Протокол ШЭ ВОШ по предмету"],"not_rendered":{"defined_names":1},"read":"whole","date_system":"1900"}

{"sheet":"Протокол ШЭ ВОШ по предмету","index":0,"n_rows":38,"n_cols":15,"rows_kept":38}
["№","Фамилия","Имя","Отчество","Дата рождения","Пол","Участник с ОВЗ (да/нет)","Класс обучения","Класс участия","Балл","Максимальный балл","Статус","Призёр муниципального этапа прошлого года","ФИО учителя","Место работы учителя"]
["1.","Хасибзянова","Диляра ","Дамировна","2010-12-14","ж","нет",4,4,24,35,"победитель","нет","Хисамова Рамиля Рамисовна","Муниципальное бюджетное общеобразовательное учреждение \"Лицей-интернат (школа для одаренных детей) г.Буинска  Республики Татарстан"]
["2.","Гаязова ","Лилия","Рафиковна","2011-03-17","ж","нет",5,5,31,38,"победитель","да","Хисамова Рамиля Рамисовна","Муниципальное бюджетное общеобразовательное учреждение \"Лицей-интернат (школа для одаренных детей) г.Буинска  Республики Татарстан"]
["3.","Шараев ","Самат","Салихович","2010-11-21","м","нет",5,5,28,38,"призер","нет","Хисамова Рамиля Рамисовна","Муниципальное бюджетное общеобразовательное учреждение \"Лицей-интернат (школа для одаренных детей) г.Буинска  Республики Татарстан"]
["4.","Хакимова","Аделя","Фениловна","2011-02-10","ж","нет",5,5,24,38,"участник","нет","Хисамова Рамиля Рамисовна","Муниципальное бюджетное общеобразовательное учреждение \"Лицей-интернат (школа для одаренных детей) г.Буинска  Республики Татарстан"]
["5.","Каримова","Алина","Маратовна","2010-05-30","ж","нет",5,5,20,38,"участник","нет","Хисамова Рамиля Рамисовна","Муниципальное бюджетное общеобразовательное учреждение \"Лицей-интернат (школа для одаренных детей) г.Буинска  Республики Татарстан"]
["6.","Халиев","Раяз","Марселевич","2010-09-06","м","нет",5,5,17,38,"участник","нет","Хисамова Рамиля Рамисовна","Муниципальное бюджетное общеобразовательное учреждение \"Лицей-интернат (школа для одаренных детей) г.Буинска  Республики Татарстан"]
[7,"Хайрутдинова ","Азалия","Ильдаровна","2010-02-28","ж","нет",6,6,39,42,"победитель","нет","Гениятуллина Гульзиде Тимергалиевна","Муниципальное бюджетное общеобразовательное учреждение \"Лицей-интернат (школа для одаренных детей) г.Буинска  Республики Татарстан"]
[8,"Камартдинова","Алия","Ленаровна","2009-04-13","ж","нет",6,6,36,42,"призер","да","Гениятуллина Гульзиде Тимергалиевна","Муниципальное бюджетное общеобразовательное учреждение \"Лицей-интернат (школа для одаренных детей) г.Буинска  Республики Татарстан"]
[9,"Хуснутдинова","Лемира","Эльнаровна","2009-06-23","ж","нет",6,6,35,42,"призер","да","Гениятуллина Гульзиде Тимергалиевна","Муниципальное бюджетное общеобразовательное учреждение \"Лицей-интернат (школа для одаренных детей) г.Буинска  Республики Татарстан"]
[10,"Валиева","Ильнара","Маратовна","2009-02-02","ж","нет",6,6,35,42,"призер","да","Гениятуллина Гульзиде Тимергалиевна","Муниципальное бюджетное общеобразовательное учреждение \"Лицей-интернат (школа для одаренных детей) г.Буинска  Республики Татарстан"]
[11,"Хайруллина","Алсу","Рамилевна","2009-07-01","ж","нет",6,6,32,42,"призер","нет","Гениятуллина Гульзиде Тимергалиевна","Муниципальное бюджетное общеобразовательное учреждение \"Лицей-интернат (школа для одаренных детей) г.Буинска  Республики Татарстан"]
[12,"Хисамутдинов","Ислам","Ильдарович","2009-06-10","м","нет",6,6,21,42,"участник","нет","Гениятуллина Гульзиде Тимергалиевна","Муниципальное бюджетное общеобразовательное учреждение \"Лицей-интернат (школа для одаренных детей) г.Буинска  Республики Татарстан"]
[13,"Гумерова","Алия","Рашидовна","2006-04-19","ж","нет",9,9,35,52,"призер","нет","Гениятуллина Гульзиде Тимергалиевна","Муниципальное бюджетное общеобразовательное учреждение \"Лицей-интернат (школа для одаренных детей) г.Буинска  Республики Татарстан"]
[14,"Усманова","Рамиля","Радиковна","2006-01-26","ж","нет",9,9,30,52,"призер","нет","Гениятуллина Гульзиде Тимергалиевна","Муниципальное бюджетное общеобразовательное учреждение \"Лицей-интернат (школа для одаренных детей) г.Буинска  Республики Татарстан"]
[15,"Абдрахманова","Эльмира","Шамилевна","2006-03-12","ж","нет",9,9,25,52,"участник","нет","Гениятуллина Гульзиде Тимергалиевна","Муниципальное бюджетное общеобразовательное учреждение \"Лицей-интернат (школа для одаренных детей) г.Буинска  Республики Татарстан"]
[16,"Камалетдинова","Эндже","Фанилевна","2006-03-05","ж","нет",9,9,23,52,"участник","нет","Гениятуллина Гульзиде Тимергалиевна","Муниципальное бюджетное общеобразовательное учреждение \"Лицей-интернат (школа для одаренных детей) г.Буинска  Республики Татарстан"]
[17,"Габайдуллина","Азалия","Айратовна","2005-09-26","ж","нет",10,10,49,52,"победитель","да","Гениятуллина Гульзиде Тимергалиевна","Муниципальное бюджетное общеобразовательное учреждение \"Лицей-интернат (школа для одаренных детей) г.Буинска  Республики Татарстан"]
[18,"Бурганова","Азалия","Айратовна","2005-04-25","ж","нет",10,10,46,52,"призер","да","Гениятуллина Гульзиде Тимергалиевна","Муниципальное бюджетное общеобразовательное учреждение \"Лицей-интернат (школа для одаренных детей) г.Буинска  Республики Татарстан"]
[19,"Залялов","Расим","Раминович","2005-01-01","м","нет",11,11,18,52,"участник","нет","Гениятуллина Гульзиде Тимергалиевна","Муниципальное бюджетное общеобразовательное учреждение \"Лицей-интернат (школа для одаренных детей) г.Буинска  Республики Татарстан"]
[20,"Сафиуллин","Ранис","Ильгизарович","2004-11-09","м","нет",11,11,16,52,"участник","нет","Гениятуллина Гульзиде Тимергалиевна","Муниципальное бюджетное общеобразовательное учреждение \"Лицей-интернат (школа для одаренных детей) г.Буинска  Республики Татарстан"]
[21,"Низамов","Раяз "," Рустемович","2011-11-24","м",{"$f":"$G$21","v":"нет"},4,4,25,35,"победитель ","нет","Зиатдинова Гульназ Шайхутдиновна ",{"$f":"$O$21","v":"Муниципальное бюджетное общеобразовательное учреждение \"Лицей-интернат (школа для одаренных детей) г.Буинска  Республики Татарстан"}]
[22,"Хакимова ","Диляра ","Ильдусовна","2011-12-18","ж","нет",4,4,18,35,"участник","нет","Зиатдинва Гульназ Шайхутдиновна ","Муниципальное бюджетное общеобразовательное учреждение \"Лицей-интернат (школа для одаренных детей) г.Буинска  Республики Татарстан"]
[23,"Хамидуллина ","Гузель ","Рашитовна","2012-02-07","ж","нет",4,4,20,35,"участник","нет","зиатдинова Гульназ Шайхутдиновна ","Муниципальное бюджетное общеобразовательное учреждение \"Лицей-интернат (школа для одаренных детей) г.Буинска  Республики Татарстан"]
[24,"Хисамутдинов ","Резван ","Ильдарович","2011-08-10","м","нет",4,4,15,35,"участник","нет","Зиатдинова Гульназ Шайхутдиновна ","Муниципальное бюджетное общеобразовательное учреждение \"Лицей-интернат (школа для одаренных детей) г.Буинска  Республики Татарстан"]
[25,"Фахрутдинова ","Самира","Марсовна","2010-09-21","ж","нет",5,5,30,38,"призер ","да","Зиатдинова Гульназ Шайхутдиновна ","Муниципальное бюджетное общеобразовательное учреждение \"Лицей-интернат (школа для одаренных детей) г.Буинска  Республики Татарстан"]
[26,"Исхакова ","Самира","Рамилевна","2008-08-29","ж","нет",7,7,30,46,"призер","нет","Зиатдинова Гульназ Шайхутдиновна ","Муниципальное бюджетное общеобразовательное учреждение \"Лицей-интернат (школа для одаренных детей) г.Буинска  Республики Татарстан"]
[27,"Хусниев ","Раяз","Радикович ","2008-12-11","м","нет",7,7,46,46,"победитель","да","Зиатдинова Гульназ Шайхутдиновна ","Муниципальное бюджетное общеобразовательное учреждение \"Лицей-интернат (школа для одаренных детей) г.Буинска  Республики Татарстан"]
[28,"Гафаров ","Ильяс","Ильнурович","2008-11-20","м","нет",7,7,33,46,"призер","нет","Зиатдинова Гульназ Шайхутдиновна ","Муниципальное бюджетное общеобразовательное учреждение \"Лицей-интернат (школа для одаренных детей) г.Буинска  Республики Татарстан"]
[29,"Сулейманова ","Самина ","Радиковна","2006-05-05","ж",{"$f":"$G$29","v":"нет"},9,9,45,52,"участник","нет","Зиатдинова Гульназ Шайхутдиновна ","Муниципальное бюджетное общеобразовательное учреждение \"Лицей-интернат (школа для одаренных детей) г.Буинска  Республики Татарстан"]
[30,"Ситдикова ","Алсина","Илдусовна","2006-08-03","ж","нет",9,9,48,52,"победитель","да","Зиатдинова Гульназ Шайхутдиновна ","Муниципальное бюджетное общеобразовательное учреждение \"Лицей-интернат (школа для одаренных детей) г.Буинска  Республики Татарстан"]
[31,"Давлетшина ","Эльвина ","Дмитриевна","2006-05-01","ж","нет",9,9,35,52,"участник","нет","Зиатдинова Гульназ Шайхутдиновна ","Муниципальное бюджетное общеобразовательное учреждение \"Лицей-интернат (школа для одаренных детей) г.Буинска  Республики Татарстан"]
[32,"Зиатдинова ","Раиля ","Равилевна","2006-10-09","ж","нет",9,9,47,52,"призер ","нет","Зиатдинова Гульназ Шайхутдиновна ","Муниципальное бюджетное общеобразовательное учреждение \"Лицей-интернат (школа для одаренных детей) г.Буинска  Республики Татарстан"]
[33,"Аюпова","Латифа","Ильшатовна","2006-08-29","ж","нет",9,9,30,52,"участник","нет","Зиатдинова Гульназ Шайхутдиновна ","Муниципальное бюджетное общеобразовательное учреждение \"Лицей-интернат (школа для одаренных детей) г.Буинска  Республики Татарстан"]
[34,"Халитова","Регина ","Зуфаровна","2007-03-23","ж","нет",8,8,9,48,"участник","нет","Зиатдинова Гульназ Шайхутдиновна ","Муниципальное бюджетное общеобразовательное учреждение \"Лицей-интернат (школа для одаренных детей) г.Буинска  Республики Татарстан"]
[35,"Ахметшина ","Алия ","Ильдусовна","2008-03-05","ж","нет",8,8,18,48,"участник","нет","Зиатдинова Гульназ Шайхутдиновна ","Муниципальное бюджетное общеобразовательное учреждение \"Лицей-интернат (школа для одаренных детей) г.Буинска  Республики Татарстан"]
[36,"Гиматдинов "," Салават ","Вакилович","2008-05-20","м","нет",8,8,6,48,"участник","нет","Зиатдинова Гульназ Шайхутдиновна ","Муниципальное бюджетное общеобразовательное учреждение \"Лицей-интернат (школа для одаренных детей) г.Буинска  Республики Татарстан"]
[37,"Халиуллин ","Искандер ","Фанисович ","2007-02-18","м","нет",8,8,10,48,"участник","нет","Зиатдинова Гульназ Шайхутдиновна ","Муниципальное бюджетное общеобразовательное учреждение \"Лицей-интернат (школа для одаренных детей) г.Буинска  Республики Татарстан"]